fUSD/lending_fUSD_20250818
["ID","MTS","AMOUNT","RATE_DAILY","PERIOD"]
[380068860,1755528638334,-150.0,0.0001098,2]
[380068862,1755528638344,-150.0,0.00010986,2]
[380068864,1755528638354,-343.09119003,0.0001099,2]
[380068866,1755528638364,-343.09119003,0.0001099,2]
[380068868,1755528638374,-343.09119003,0.0001099,2]
[380068870,1755528638383,-1000.0,0.00010996,2]
[380068871,1755528638392,-150.0,0.00010996,2]
[380068873,1755528638402,-847623.46259113,0.00010997,2]
[380068876,1755528638412,-2000.0,0.00010997,2]
[380068877,1755528638422,-300.0,0.00010999,2]
[380068879,1755528638435,-2500.0,0.00010999,2]
[380068881,1755528638445,-2000.0,0.00010999,2]
[380068883,1755528638454,-1000.0,0.00010999,2]
[380068885,1755528638464,-1000.0,0.00010999,2]
[380068887,1755528638475,-255.0,0.00010999,2]
[380068890,1755528638484,-388.0,0.00010999,2]
[380068891,1755528638494,-420.0,0.00010999,2]
[380068893,1755528638504,-1680.0,0.00010999,2]
[380068895,1755528638513,-830.27,0.00010999,2]
[380068897,1755528638525,-666.0,0.00010999,2]
[380068899,1755528638541,-3173.0,0.00010999,2]
[380068901,1755528638561,-25549.5297172,0.00011,2]
[380068903,1755528638571,-1492091.45017374,0.00011,2]
[380068905,1755528638581,-580.7689892,0.00011,2]
[380068907,1755528638591,-1157737.25420364,0.00011,2]
[380068909,1755528638600,-250.0,0.00011,2]
[380068911,1755528638609,-250.0,0.00011,2]
[380068913,1755528638619,-250.0,0.00011,2]
[380068915,1755528638628,-250.0,0.00011,2]
[380068917,1755528638638,-250.0,0.00011,2]
[380068919,1755528638647,-250.0,0.00011,2]
[380068921,1755528638656,-250.0,0.00011,2]
[380068923,1755528638666,-250.0,0.00011,2]
[380068925,1755528638675,-250.0,0.00011,2]
[380068927,1755528638684,-250.0,0.00011,2]
[380068929,1755528638694,-250.0,0.00011,2]
[380068931,1755528638703,-250.0,0.00011,2]
[380068933,1755528638712,-250.0,0.00011,2]
[380068961,1755528639058,-250.0,0.00011,2]
[380068965,1755528639093,-250.0,0.00011,2]
[380068967,1755528639103,-250.0,0.00011,2]
[380068969,1755528639112,-250.0,0.00011,2]
[380068971,1755528639122,-250.0,0.00011,2]
[380068973,1755528639131,-250.0,0.00011,2]
[380068975,1755528639141,-250.0,0.00011,2]
[380068977,1755528639150,-250.0,0.00011,2]
[380068979,1755528639160,-250.0,0.00011,2]
[380068981,1755528639170,-250.0,0.00011,2]
[380068983,1755528639180,-250.0,0.00011,2]
[380068985,1755528639189,-250.0,0.00011,2]
[380068987,1755528639199,-250.0,0.00011,2]
[380068989,1755528639208,-250.0,0.00011,2]
[380068991,1755528639218,-250.0,0.00011,2]
[380068993,1755528639227,-250.0,0.00011,2]
[380068995,1755528639238,-250.0,0.00011,2]
[380068997,1755528639247,-250.0,0.00011,2]
[380068999,1755528639257,-250.0,0.00011,2]
[380069001,1755528639267,-250.0,0.00011,2]
[380069003,1755528639278,-250.0,0.00011,2]
[380069005,1755528639287,-250.0,0.00011,2]
[380069007,1755528639297,-250.0,0.00011,2]
[380069009,1755528639306,-398.5,0.00011,2]
[380069011,1755528639316,-23813.65,0.00011,2]
[380069013,1755528639326,-5124.91,0.00011,2]
[380069015,1755528639337,-5000.0,0.00011,2]
[380069017,1755528639346,-800.0,0.00011,2]
[380069019,1755528639356,-175.62215014,0.00011,2]
[380069022,1755528639366,-251.52043242,0.00011,2]
[380069024,1755528639376,-418738.21,0.00011,2]
[380069026,1755528639385,-5304721.15113467,0.00011,2]
[380069049,1755528639598,-471.0,0.00011,2]
[380069066,1755528640417,-712.5,0.00011,2]
[380069067,1755528640507,-8410.82353138,0.00011,2]
[380069068,1755528640519,-676.47321857,0.00011,2]
[380069069,1755528640585,-5563.01625435,0.00011,2]
[380069070,1755528640596,-1277.29231165,0.00011,2]
[380069071,1755528640608,-3561.5,0.00011,2]
[380069072,1755528640627,-1184.6646,0.00011,2]
[380069073,1755528640673,-3935.33868999,0.00011,2]
[380069133,1755528643649,-159.59564189,0.00010899,2]
[380069135,1755528643659,-995.10435811,0.00011,2]
[380069136,1755528643671,-1729.72,0.00011,2]
[380069137,1755528643682,-2507.94453858,0.00011,2]
[380069138,1755528643694,-9887.10245858,0.00011,2]
[380069369,1755528646064,-2571.30585657,0.00011,2]
[380069372,1755528646076,-669.52613148,0.00011,2]
[380069378,1755528646125,-17389.34982211,0.00011,2]
[380069389,1755528646218,-1187.5330515,0.00011,2]
[380069924,1755529068594,302.0,0.000221,120]
[380070120,1755529648292,-500.0,0.00024999,120]
[380070121,1755529648355,-544.0,0.00026,120]
[380070122,1755529648405,-500.0,0.00026999,120]
[380070123,1755529648460,-500.0,0.00028,120]
[380070124,1755529648509,-309.82142,0.00028999,120]
[380070125,1755529648555,-1444.0,0.00029041,120]
[380070126,1755529648609,-500.0,0.0003,120]
[380070127,1755529648658,-3168.81589,0.00030136,120]
[380070128,1755529648703,-3576.771511,0.00030136,120]
[380070129,1755529648752,-400.0,0.00030136,120]
[380070130,1755529648802,-400.0,0.00030136,120]
[380070131,1755529648850,-400.0,0.00030136,120]
[380070132,1755529648899,-400.0,0.00030136,120]
[380070133,1755529648947,-400.0,0.00030136,120]
[380070134,1755529648994,-400.0,0.00030136,120]
[380070135,1755529649042,-400.0,0.00030136,120]
[380070136,1755529649088,-400.0,0.00030136,120]
[380070137,1755529649136,-400.0,0.00030136,120]
[380070138,1755529649182,-216.694825,0.00030136,120]
[380070139,1755529649229,-400.0,0.00030136,120]
[380070140,1755529649275,-159.470343,0.00030136,120]
[380070141,1755529649321,-400.0,0.00030136,120]
[380070142,1755529649368,-400.0,0.00030136,120]
[380070143,1755529649415,-400.0,0.00030136,120]
[380070144,1755529649463,-234.74491829,0.00030136,120]
[380070145,1755529649509,-400.0,0.00030136,120]
[380070146,1755529649555,-400.0,0.00030136,120]
[380070147,1755529649600,-400.0,0.00030136,120]
[380070148,1755529649646,-400.0,0.00030136,120]
[380070149,1755529649692,-400.0,0.00030136,120]
[380070150,1755529649739,-400.0,0.00030136,120]
[380070151,1755529649787,-400.0,0.00030136,120]
[380070152,1755529649836,-410.8,0.00030136,120]
[380070153,1755529649887,-360.51124172,0.00030136,120]
[380070154,1755529649934,-400.0,0.00030136,120]
[380070155,1755529649983,-400.0,0.00030136,120]
[380070156,1755529650032,-400.0,0.00030136,120]
[380070157,1755529650083,-400.0,0.00030136,120]
[380070158,1755529650132,-400.0,0.00030136,120]
[380070159,1755529650180,-400.0,0.00030136,120]
[380070160,1755529650229,-400.0,0.00030136,120]
[380070161,1755529650278,-400.0,0.00030136,120]
[380070162,1755529650325,-400.0,0.00030136,120]
[380070163,1755529650373,-527.95936829,0.00030136,120]
[380070164,1755529650421,-403.15846438,0.00030136,120]
[380070165,1755529650468,-400.0,0.00030136,120]
[380070166,1755529650517,-400.0,0.00030136,120]
[380070167,1755529650579,-400.0,0.00030136,120]
[380070168,1755529650628,-400.0,0.00030136,120]
[380070169,1755529650674,-400.0,0.00030136,120]
[380070170,1755529650723,-628.08,0.00030136,120]
[380070171,1755529650772,-400.0,0.00030136,120]
[380070172,1755529650821,-400.0,0.00030136,120]
[380070173,1755529650868,-401.33023778,0.00030136,120]
[380070174,1755529650918,-400.0,0.00030136,120]
[380070175,1755529650966,-400.0,0.00030136,120]
[380070176,1755529651013,-400.0,0.00030136,120]
[380070177,1755529651062,-2061.84,0.00030136,120]
[380070178,1755529651109,-400.0,0.00030136,120]
[380070179,1755529651158,-400.0,0.00030136,120]
[380070180,1755529651207,-400.0,0.00030136,120]
[380070181,1755529651256,-400.0,0.00030136,120]
[380070182,1755529651306,-400.0,0.00030136,120]
[380070183,1755529651355,-400.0,0.00030136,120]
[380070184,1755529651403,-685.74,0.00030136,120]
[380070185,1755529651450,-400.0,0.00030136,120]
[380070186,1755529651495,-400.0,0.00030136,120]
[380070187,1755529651543,-1228.23,0.00030136,120]
[380070188,1755529651917,-400.0,0.00030136,120]
[380070189,1755529651967,-400.0,0.00030136,120]
[380070190,1755529652013,-1614.4,0.00030136,120]
[380070191,1755529652059,-400.0,0.00030136,120]
[380070192,1755529652103,-400.0,0.00030136,120]
[380070193,1755529652149,-400.0,0.00030136,120]
[380070194,1755529652193,-1768.69,0.00030136,120]
[380070195,1755529652240,-400.0,0.00030136,120]
[380070196,1755529652286,-1273.14,0.00030136,120]
[380070197,1755529652332,-974.36,0.00030136,120]
[380070198,1755529652379,-685.42,0.00030136,120]
[380070199,1755529652426,-400.0,0.00030136,120]
[380070200,1755529652473,-1867.28,0.00030136,120]
[380070201,1755529652519,-667.95,0.00030136,120]
[380070202,1755529652566,-400.0,0.00030136,120]
[380070203,1755529652611,-400.0,0.00030136,120]
[380070204,1755529652658,-743.45,0.00030136,120]
[380070205,1755529652706,-1170.34,0.00030136,120]
[380070206,1755529652757,-2452.92,0.00030136,120]
[380070207,1755529652804,-400.0,0.00030136,120]
[380070208,1755529652854,-400.0,0.00030136,120]
[380070209,1755529652903,-735.06,0.00030136,120]
[380070210,1755529652950,-400.0,0.00030136,120]
[380070211,1755529652997,-400.0,0.00030136,120]
[380070212,1755529653049,-400.0,0.00030136,120]
[380070213,1755529653097,-400.0,0.00030136,120]
[380070214,1755529653145,-400.0,0.00030136,120]
[380070215,1755529653191,-640.65,0.00030136,120]
[380070216,1755529653244,-400.0,0.00030136,120]
[380070217,1755529653294,-400.0,0.00030136,120]
[380070218,1755529653345,-400.64,0.00030136,120]
[380070219,1755529653394,-400.0,0.00030136,120]
[380070220,1755529653442,-400.0,0.00030136,120]
[380070221,1755529653493,-1455.7,0.00030136,120]
[380070222,1755529653542,-400.0,0.00030136,120]
[380070223,1755529653594,-400.0,0.00030136,120]
[380070224,1755529653641,-400.0,0.00030136,120]
[380070225,1755529653693,-400.0,0.00030136,120]
[380070226,1755529653747,-400.0,0.00030136,120]
[380070227,1755529653800,-400.0,0.00030136,120]
[380070228,1755529653854,-400.0,0.00030136,120]
[380070229,1755529653905,-1165.76,0.00030136,120]
[380070230,1755529653966,-400.0,0.00030136,120]
[380070231,1755529654021,-400.0,0.00030136,120]
[380070232,1755529654070,-400.0,0.00030136,120]
[380070233,1755529654120,-400.0,0.00030136,120]
[380070234,1755529654173,-400.0,0.00030136,120]
[380070235,1755529654223,-496.96,0.00030136,120]
[380070236,1755529654271,-541.69179723,0.00030136,120]
[380070237,1755529654322,-400.0,0.00030136,120]
[380070238,1755529654373,-1021.85,0.00030136,120]
[380070239,1755529654423,-2134.44,0.00030136,120]
[380070240,1755529654473,-1252.19,0.00030136,120]
[380070241,1755529654521,-863.45,0.00030136,120]
[380070242,1755529654569,-2666.64,0.00030136,120]
[380070243,1755529654622,-666.4,0.00030136,120]
[380070244,1755529654668,-400.0,0.00030136,120]
[380070245,1755529654717,-400.0,0.00030136,120]
[380070246,1755529654771,-400.0,0.00030136,120]
[380070247,1755529654819,-1136.1,0.00030136,120]
[380070248,1755529654865,-400.0,0.00030136,120]
[380070249,1755529654912,-555.16,0.00030136,120]
[380070250,1755529654961,-957.4,0.00030136,120]
[380070251,1755529655010,-400.0,0.00030136,120]
[380070252,1755529655060,-2809.09,0.00030136,120]
[380070253,1755529655108,-810.78,0.00030136,120]
[380070254,1755529655158,-400.0,0.00030136,120]
[380070255,1755529655206,-2965.74,0.00030136,120]
[380070256,1755529655254,-400.0,0.00030136,120]
[380070257,1755529655303,-847.77,0.00030136,120]
[380070258,1755529655349,-400.0,0.00030136,120]
[380070259,1755529655397,-577.6,0.00030136,120]
[380070260,1755529655446,-400.0,0.00030136,120]
[380070261,1755529655495,-400.0,0.00030136,120]
[380070262,1755529655544,-408.98,0.00030136,120]
[380070263,1755529655591,-400.0,0.00030136,120]
[380070264,1755529655639,-400.0,0.00030136,120]
[380070265,1755529655687,-400.0,0.00030136,120]
[380070266,1755529655734,-400.0,0.00030136,120]
[380070267,1755529655782,-1241.0,0.00030136,120]
[380070268,1755529655831,-400.0,0.00030136,120]
[380070269,1755529655881,-400.0,0.00030136,120]
[380070270,1755529655930,-630.81,0.00030136,120]
[380070271,1755529655981,-468.77,0.00030136,120]
[380070272,1755529656032,-1176.77,0.00030136,120]
[380070273,1755529656082,-400.0,0.00030136,120]
[380070274,1755529656132,-1337.64,0.00030136,120]
[380070275,1755529656182,-760.67,0.00030136,120]
[380070276,1755529656231,-400.0,0.00030136,120]
[380070277,1755529656279,-784.36,0.00030136,120]
[380070278,1755529656328,-680.4,0.00030136,120]
[380070279,1755529656375,-400.0,0.00030136,120]
[380070280,1755529656422,-697.03,0.00030136,120]
[380070281,1755529656469,-400.0,0.00030136,120]
[380070282,1755529656791,-693.85,0.00030136,120]
[380070283,1755529656843,-400.0,0.00030136,120]
[380070284,1755529656891,-1485.68,0.00030136,120]
[380070285,1755529656938,-400.0,0.00030136,120]
[380070286,1755529656987,-401.65116111,0.00030136,120]
[380070287,1755529657035,-400.0,0.00030136,120]
[380070288,1755529657082,-400.0,0.00030136,120]
[380070289,1755529657131,-461.24,0.00030136,120]
[380070290,1755529657181,-688.25,0.00030136,120]
[380070291,1755529657231,-400.0,0.00030136,120]
[380070292,1755529657280,-400.0,0.00030136,120]
[380070293,1755529657334,-802.45,0.00030136,120]
[380070294,1755529657386,-1043.1,0.00030136,120]
[380070295,1755529657437,-803.22,0.00030136,120]
[380070296,1755529657484,-300.0,0.00030136,120]
[380070297,1755529657534,-515.11,0.00030136,120]
[380070298,1755529657582,-300.0,0.00030136,120]
[380070299,1755529657628,-400.0,0.00030136,120]
[380070300,1755529657678,-400.0,0.00030136,120]
[380070301,1755529657730,-684.53,0.00030136,120]
[380070302,1755529657780,-400.0,0.00030136,120]
[380070303,1755529657830,-1240.91,0.00030136,120]
[380070304,1755529657879,-962.44,0.00030136,120]
[380070305,1755529657929,-2155.95,0.00030136,120]
[380070306,1755529657977,-400.0,0.00030136,120]
[380070307,1755529658022,-400.0,0.00030136,120]
[380070308,1755529658068,-400.0,0.00030136,120]
[380070309,1755529658114,-400.0,0.00030136,120]
[380070310,1755529658171,-400.0,0.00030136,120]
[380070311,1755529658220,-400.0,0.00030136,120]
[380070312,1755529658266,-400.0,0.00030136,120]
[380070313,1755529658318,-1549.49,0.00030136,120]
[380070314,1755529658372,-832.41,0.00030136,120]
[380070315,1755529658427,-400.0,0.00030136,120]
[380070316,1755529658475,-400.0,0.00030136,120]
[380070317,1755529658521,-480.83,0.00030136,120]
[380070318,1755529658568,-400.0,0.00030136,120]
[380070319,1755529658616,-400.0,0.00030136,120]
[380070320,1755529658662,-981.95,0.00030136,120]
[380070321,1755529658709,-1309.35,0.00030136,120]
[380070322,1755529658760,-400.0,0.00030136,120]
[380070323,1755529658810,-795.82,0.00030136,120]
[380070324,1755529658862,-564.38,0.00030136,120]
[380070325,1755529658911,-400.0,0.00030136,120]
[380070326,1755529658962,-1060.62,0.00030136,120]
[380070327,1755529659012,-2210.3,0.00030136,120]
[380070328,1755529659061,-400.0,0.00030136,120]
[380070329,1755529659109,-400.0,0.00030136,120]
[380070330,1755529659159,-400.0,0.00030136,120]
[380070331,1755529659206,-1546.3,0.00030136,120]
[380070332,1755529659255,-1125.73,0.00030136,120]
[380070333,1755529659305,-400.0,0.00030136,120]
[380070334,1755529659352,-2100.26,0.00030136,120]
[380070335,1755529659406,-400.0,0.00030136,120]
[380070336,1755529659453,-400.0,0.00030136,120]
[380070337,1755529659501,-464.6,0.00030136,120]
[380070338,1755529659550,-400.0,0.00030136,120]
[380070339,1755529659598,-400.0,0.00030136,120]
[380070340,1755529659649,-400.0,0.00030136,120]
[380070341,1755529659699,-392.22485659,0.00030136,120]
[380070342,1755529659749,-400.0,0.00030136,120]
[380070343,1755529659798,-400.0,0.00030136,120]
[380070344,1755529659850,-2808.59,0.00030136,120]
[380070345,1755529659902,-1261.35,0.00030136,120]
[380070346,1755529659958,-400.0,0.00030136,120]
[380070347,1755529660007,-212.506678,0.00030136,120]
[380070348,1755529660056,-400.0,0.00030136,120]
[380070349,1755529660104,-400.0,0.00030136,120]
[380070350,1755529660152,-400.0,0.00030136,120]
[380070351,1755529660201,-1527.17,0.00030136,120]
[380070352,1755529660249,-400.0,0.00030136,120]
[380070353,1755529660297,-413.6,0.00030136,120]
[380070354,1755529660348,-400.0,0.00030136,120]
[380070355,1755529660404,-662.0,0.00030136,120]
[380070356,1755529660465,-695.05,0.00030136,120]
[380070357,1755529660529,-400.0,0.00030136,120]
[380070358,1755529660576,-2629.61,0.00030136,120]
[380070359,1755529660626,-400.0,0.00030136,120]
[380070360,1755529660674,-400.0,0.00030136,120]
[380070361,1755529660720,-400.0,0.00030136,120]
[380070362,1755529660773,-784.12,0.00030136,120]
[380070363,1755529660824,-400.0,0.00030136,120]
[380070364,1755529660878,-400.0,0.00030136,120]
[380070365,1755529660933,-400.0,0.00030136,120]
[380070366,1755529660986,-442.07,0.00030136,120]
[380070367,1755529661039,-400.0,0.00030136,120]
[380070368,1755529661093,-400.0,0.00030136,120]
[380070369,1755529661143,-400.0,0.00030136,120]
[380070370,1755529661192,-400.0,0.00030136,120]
[380070371,1755529661239,-400.0,0.00030136,120]
[380070372,1755529661287,-611.41,0.00030136,120]
[380070373,1755529661334,-400.0,0.00030136,120]
[380070374,1755529661383,-400.0,0.00030136,120]
[380070375,1755529661431,-878.47,0.00030136,120]
[380070376,1755529661771,-713.43,0.00030136,120]
[380070377,1755529661820,-400.0,0.00030136,120]
[380070378,1755529661866,-1799.69,0.00030136,120]
[380070379,1755529661913,-791.73,0.00030136,120]
[380070380,1755529661959,-400.0,0.00030136,120]
[380070381,1755529662009,-499.33,0.00030136,120]
[380070382,1755529662057,-400.0,0.00030136,120]
[380070383,1755529662103,-400.0,0.00030136,120]
[380070384,1755529662150,-400.0,0.00030136,120]
[380070385,1755529662197,-400.0,0.00030136,120]
[380070386,1755529662244,-1465.11,0.00030136,120]
[380070387,1755529662292,-400.0,0.00030136,120]
[380070388,1755529662339,-698.04,0.00030136,120]
[380070389,1755529662387,-426.68,0.00030136,120]
[380070390,1755529662434,-400.0,0.00030136,120]
[380070391,1755529662480,-1059.36,0.00030136,120]
[380070392,1755529662530,-705.92,0.00030136,120]
[380070393,1755529662577,-400.0,0.00030136,120]
[380070394,1755529662623,-929.51,0.00030136,120]
[380070395,1755529662668,-1009.69,0.00030136,120]
[380070396,1755529662714,-400.0,0.00030136,120]
[380070397,1755529662765,-400.0,0.00030136,120]
[380070398,1755529662814,-1469.41,0.00030136,120]
[380070399,1755529662863,-1227.82,0.00030136,120]
[380070400,1755529662911,-400.0,0.00030136,120]
[380070401,1755529662957,-400.0,0.00030136,120]
[380070402,1755529663007,-400.0,0.00030136,120]
[380070403,1755529663055,-653.64,0.00030136,120]
[380070404,1755529663101,-400.0,0.00030136,120]
[380070405,1755529663148,-973.89,0.00030136,120]
[380070406,1755529663195,-400.0,0.00030136,120]
[380070407,1755529663242,-400.0,0.00030136,120]
[380070408,1755529663288,-400.0,0.00030136,120]
[380070409,1755529663334,-400.0,0.00030136,120]
[380070410,1755529663380,-400.0,0.00030136,120]
[380070411,1755529663424,-400.0,0.00030136,120]
[380070412,1755529663469,-1040.75,0.00030136,120]
[380070413,1755529663515,-681.01,0.00030136,120]
[380070414,1755529663561,-400.0,0.00030136,120]
[380070415,1755529663614,-400.0,0.00030136,120]
[380070416,1755529663669,-400.0,0.00030136,120]
[380070417,1755529663722,-2718.98,0.00030136,120]
[380070418,1755529663782,-811.19,0.00030136,120]
[380070419,1755529663836,-1452.97,0.00030136,120]
[380070420,1755529663891,-400.0,0.00030136,120]
[380070421,1755529663941,-400.0,0.00030136,120]
[380070422,1755529663990,-1957.05,0.00030136,120]
[380070423,1755529664040,-400.0,0.00030136,120]
[380070424,1755529664090,-400.0,0.00030136,120]
[380070425,1755529664139,-1017.21,0.00030136,120]
[380070426,1755529664187,-401.61,0.00030136,120]
[380070427,1755529664235,-2285.43,0.00030136,120]
[380070428,1755529664283,-858.63,0.00030136,120]
[380070429,1755529664330,-400.0,0.00030136,120]
[380070430,1755529664379,-445.83,0.00030136,120]
[380070431,1755529664425,-400.0,0.00030136,120]
[380070432,1755529664473,-400.0,0.00030136,120]
[380070433,1755529664521,-459.20791809,0.00030136,120]
[380070434,1755529664569,-865.24,0.00030136,120]
[380070435,1755529664617,-400.0,0.00030136,120]
[380070436,1755529664664,-400.0,0.00030136,120]
[380070437,1755529664712,-1123.6,0.00030136,120]
[380070438,1755529664769,-413.93,0.00030136,120]
[380070439,1755529664817,-400.0,0.00030136,120]
[380070440,1755529664864,-400.0,0.00030136,120]
[380070441,1755529664914,-400.0,0.00030136,120]
[380070442,1755529664964,-400.0,0.00030136,120]
[380070443,1755529665012,-2022.87,0.00030136,120]
[380070444,1755529665064,-400.0,0.00030136,120]
[380070445,1755529665111,-407.26,0.00030136,120]
[380070446,1755529665159,-1158.12,0.00030136,120]
[380070447,1755529665207,-400.0,0.00030136,120]
[380070448,1755529665255,-1362.18,0.00030136,120]
[380070449,1755529665303,-400.0,0.00030136,120]
[380070450,1755529665351,-400.0,0.00030136,120]
[380070451,1755529665397,-400.0,0.00030136,120]
[380070452,1755529665445,-3397.87,0.00030136,120]
[380070453,1755529665493,-671.37,0.00030136,120]
[380070454,1755529665543,-441.55,0.00030136,120]
[380070455,1755529665590,-673.73,0.00030136,120]
[380070456,1755529665636,-400.0,0.00030136,120]
[380070457,1755529665685,-400.0,0.00030136,120]
[380070458,1755529665736,-1152.68,0.00030136,120]
[380070459,1755529665782,-400.0,0.00030136,120]
[380070460,1755529665829,-400.0,0.00030136,120]
[380070461,1755529665876,-3900.53,0.00030136,120]
[380070462,1755529665926,-226.53042617,0.00030136,120]
[380070463,1755529665975,-1277.65,0.00030136,120]
[380070464,1755529666023,-400.0,0.00030136,120]
[380070465,1755529666072,-400.0,0.00030136,120]
[380070466,1755529666121,-2073.14,0.00030136,120]
[380070467,1755529666168,-622.45,0.00030136,120]
[380070468,1755529666217,-2638.98,0.00030136,120]
[380070469,1755529666265,-400.0,0.00030136,120]
[380070470,1755529666597,-401.42429424,0.00030136,120]
[380070471,1755529666656,-904.68,0.00030136,120]
[380070472,1755529666704,-858.68,0.00030136,120]
[380070473,1755529666775,-1006.86,0.00030136,120]
[380070474,1755529666835,-400.0,0.00030136,120]
[380070475,1755529666884,-647.11,0.00030136,120]
[380070476,1755529666934,-400.0,0.00030136,120]
[380070477,1755529666983,-509.82,0.00030136,120]
[380070478,1755529667039,-400.0,0.00030136,120]
[380070479,1755529667090,-3896.75,0.00030136,120]
[380070480,1755529667139,-402.85056593,0.00030136,120]
[380070481,1755529667188,-400.0,0.00030136,120]
[380070482,1755529667237,-415.54,0.00030136,120]
[380070483,1755529667286,-400.0,0.00030136,120]
[380070484,1755529667336,-400.0,0.00030136,120]
[380070485,1755529667384,-410.84,0.00030136,120]
[380070486,1755529667434,-2807.78,0.00030136,120]
[380070487,1755529667491,-820.85,0.00030136,120]
[380070488,1755529667538,-870.79,0.00030136,120]
[380070489,1755529667590,-400.0,0.00030136,120]
[380070490,1755529667639,-401.00800318,0.00030136,120]
[380070491,1755529667686,-400.0,0.00030136,120]
[380070492,1755529667737,-1877.7,0.00030136,120]
[380070493,1755529667785,-400.53468279,0.00030136,120]
[380070494,1755529667832,-400.0,0.00030136,120]
[380070495,1755529667879,-400.0,0.00030136,120]
[380070496,1755529667926,-400.0,0.00030136,120]
[380070497,1755529667976,-1010.3,0.00030136,120]
[380070498,1755529668026,-400.0,0.00030136,120]
[380070499,1755529668077,-207.95927593,0.00030136,120]
[380070500,1755529668126,-400.0,0.00030136,120]
[380070501,1755529668174,-615.16,0.00030136,120]
[380070502,1755529668224,-690.34,0.00030136,120]
[380070503,1755529668274,-1875.5,0.00030136,120]
[380070504,1755529668323,-3683.59,0.00030136,120]
[380070505,1755529668369,-400.0,0.00030136,120]
[380070506,1755529668416,-400.0,0.00030136,120]
[380070507,1755529668462,-400.0,0.00030136,120]
[380070508,1755529668508,-525.4,0.00030136,120]
[380070509,1755529668555,-3432.87,0.00030136,120]
[380070510,1755529668601,-380.82764553,0.00030136,120]
[380070511,1755529668645,-400.0,0.00030136,120]
[380070512,1755529668690,-406.86,0.00030136,120]
[380070513,1755529668736,-807.36,0.00030136,120]
[380070514,1755529668783,-400.0,0.00030136,120]
[380070515,1755529668830,-1437.88,0.00030136,120]
[380070516,1755529668877,-707.11,0.00030136,120]
[380070517,1755529668927,-400.0,0.00030136,120]
[380070518,1755529668977,-664.19,0.00030136,120]
[380070519,1755529669024,-400.0,0.00030136,120]
[380070520,1755529669075,-474.79,0.00030136,120]
[380070521,1755529669125,-400.0,0.00030136,120]
[380070522,1755529669173,-474.17,0.00030136,120]
[380070523,1755529669224,-272.07978428,0.00030136,120]
[380070524,1755529669273,-547.85,0.00030136,120]
[380070525,1755529669322,-1528.0,0.00030136,120]
[380070526,1755529669372,-400.0,0.00030136,120]
[380070527,1755529669422,-2753.46,0.00030136,120]
[380070528,1755529669470,-400.0,0.00030136,120]
[380070529,1755529669517,-1847.76,0.00030136,120]
[380070530,1755529669565,-1708.68,0.00030136,120]